bitfinex/quotes_SOLUSD_20250602
["timestamp","ask_amount","ask_price","bid_price","bid_amount"]
[1748884091587,38.80375881,153.12,153.11,6.53125204]
[1748884092340,38.80375881,153.13,153.11,6.53125204]
[1748884092985,38.80375881,153.12,153.11,6.53125204]
[1748884093185,38.80375881,153.13,153.09,16.33026324]
[1748884093407,38.80375881,153.13,153.09,55.13402205]
[1748884093810,38.80375881,153.13,153.09,61.66612734]
[1748884094292,49.92375881,153.14,153.1,38.80375881]
[1748884095115,38.80375881,153.11,153.03,25.18431526]
[1748884095292,23.27938536,153.07,153.03,6.5346664]
[1748884095491,23.27938536,153.06,153.03,6.5346664]
[1748884095690,23.27938536,153.07,153.03,22.87133241]
[1748884095930,23.27938536,153.07,153.03,46.15071777]
[1748884096089,23.27938536,153.07,153.03,22.87133241]
[1748884099313,38.80166923,153.07,153.03,61.67300164]
[1748884100722,11.12,153.08,153.05,38.80166923]
[1748884101106,38.80166923,153.1,153.06,38.80166923]
[1748884101718,38.80166923,153.11,153.06,38.80166923]
[1748884101916,38.80166923,153.1,153.06,38.80166923]
[1748884102702,38.80166923,153.09,153.07,22.86535571]
[1748884103017,38.80166923,153.11,153.07,61.66702494]
[1748884103222,49.92166923,153.12,153.07,61.66702494]
[1748884104802,11.12,153.12,153.07,61.66702494]
[1748884105007,49.92166923,153.12,153.07,61.66702494]
[1748884105411,38.80166923,153.11,153.07,61.66702494]
[1748884107224,38.80166923,153.11,153.05,26.0]
[1748884107225,38.80166923,153.08,153.01,32.67744041]
[1748884107550,38.80166923,153.1,153.03,26.0]
[1748884107551,38.80166923,153.04,153.03,26.0]
[1748884108333,38.80166923,153.07,153.03,64.80166923]
[1748884108702,38.80166923,153.09,153.04,38.80166923]
[1748884108918,38.80166923,153.09,153.03,26.0]
[1748884108919,38.80166923,153.09,153.05,26.0]
[1748884109201,38.80166923,153.09,153.04,64.80166923]
[1748884109418,38.80166923,153.09,153.05,22.86834366]
[1748884109719,38.80166923,153.07,153.05,22.86834366]
[1748884109927,38.80166923,153.08,153.05,22.86834366]
[1748884110818,38.80166923,153.08,153.05,6.53381247]
[1748884111015,38.80166923,153.06,153.05,6.53381247]
[1748884111401,38.80166923,153.06,153.03,16.33656681]
[1748884111602,38.80166923,153.04,153.03,32.5346664]
[1748884112304,38.80166923,153.04,153.03,6.5346664]
[1748884113423,38.80166923,153.04,153.02,6.53509345]
[1748884113630,38.80166923,153.03,152.99,6.53637492]
[1748884113929,38.80166923,153.0,152.99,6.53637492]
[1748884114714,38.80166923,153.0,152.97,6.53722952]
[1748884115011,38.80166923,152.98,152.97,6.53722952]
[1748884115523,38.80166923,152.98,152.96,16.34412234]
[1748884115726,11.28,153.0,152.96,16.34412234]
[1748884115727,38.80166923,152.97,152.96,16.34412234]
[1748884116735,11.28,153.0,152.96,16.34412234]
[1748884116911,38.80166923,152.99,152.96,16.34412234]
[1748884117110,38.80166923,152.97,152.96,16.34412234]
[1748884117501,11.28,153.0,152.96,16.34412234]
[1748884117727,50.08166923,153.0,152.96,16.34412234]
[1748884118126,38.80166923,152.99,152.96,16.34412234]
[1748884118446,38.80166923,152.98,152.96,16.34412234]
[1748884119335,38.80166923,152.97,152.95,6.53808434]
[1748884119515,11.28,153.0,152.95,6.53808434]
[1748884119516,23.3134507,152.96,152.95,6.53808434]
[1748884120135,11.28,153.0,152.95,46.19674589]
[1748884120313,34.5934507,153.0,152.95,46.19674589]
[1748884120634,23.3134507,152.98,152.95,22.88329519]
[1748884123233,23.3134507,152.99,152.95,22.88329519]
[1748884123853,23.3134507,152.98,152.95,22.88329519]
[1748884124346,11.28,153.0,152.95,22.88329519]
[1748884124559,23.3134507,152.99,152.95,22.88329519]
[1748884125843,34.5934507,153.0,152.95,46.19674589]
[1748884126729,23.3134507,152.99,152.95,46.19674589]
[1748884129147,23.3134507,152.98,152.95,22.88329519]
[1748884130453,11.28,153.0,152.95,22.88329519]
[1748884130655,23.3134507,152.96,152.95,6.53808434]
[1748884131046,23.3134507,152.96,152.93,6.53893938]
[1748884131246,23.3134507,152.94,152.89,16.35095726]
[1748884131445,23.3134507,152.9,152.89,22.8916074]
[1748884131932,23.3134507,152.91,152.89,22.8916074]
[1748884132547,23.3134507,152.91,152.89,16.35095726]
[1748884135249,11.28,152.94,152.9,49.3134507]
[1748884135435,41.34,152.99,152.9,49.3134507]
[1748884135436,11.28,152.99,152.93,23.3134507]
[1748884135640,11.28,152.99,152.95,23.3134507]
[1748884135944,23.3134507,152.98,152.93,49.3134507]
[1748884136322,23.3134507,152.97,152.93,26.0]
[1748884136527,23.3134507,152.96,152.93,26.0]
[1748884136738,23.3134507,152.95,152.94,6.53851183]
[1748884137042,23.3134507,152.96,152.94,6.53851183]
[1748884137241,23.3134507,152.97,152.94,22.88479141]
[1748884140562,34.5934507,152.99,152.94,46.19824211]
[1748884143251,23.3134507,152.98,152.94,46.19824211]
[1748884143566,23.3134507,152.97,152.94,22.88479141]
[1748884144047,23.3134507,152.96,152.94,6.53851183]
[1748884146949,11.28,152.99,152.94,46.19824211]
[1748884147151,34.5934507,152.99,152.94,46.19824211]
[1748884147372,23.3134507,152.98,152.94,46.19824211]
[1748884147665,23.3134507,152.97,152.94,22.88479141]
[1748884148040,11.28,152.99,152.96,23.3134507]
[1748884148465,11.28,152.99,152.97,6.53722952]
[1748884149275,23.3134507,152.98,152.97,6.53722952]
[1748884150666,11.28,152.99,152.94,22.88479141]
[1748884150875,23.3134507,152.98,152.94,22.88479141]
[1748884152573,23.3134507,152.98,152.94,46.19824211]
[1748884153971,23.3134507,152.98,152.94,22.88479141]
[1748884154960,23.3134507,152.98,152.93,49.3134507]
[1748884154961,23.3134507,152.95,152.92,6.53936698]
[1748884155174,23.3134507,152.93,152.89,6.54065014]
[1748884155354,23.3134507,152.9,152.89,6.54065014]
[1748884156564,23.45561227,152.9,152.85,6.54236179]
[1748884156779,23.3134507,152.88,152.85,22.89826627]
[1748884157164,14.86735065,152.93,152.85,46.21171697]
[1748884157165,23.3134507,152.89,152.85,46.21171697]
[1748884157678,23.3134507,152.89,152.85,22.89826627]
[1748884157877,23.3134507,152.89,152.85,46.21171697]
[1748884158070,23.3134507,152.89,152.85,22.89826627]
[1748884158275,0.14216157,152.92,152.85,22.89826627]
[1748884158478,23.3134507,152.9,152.85,78.92352593]
[1748884158858,11.12,152.93,152.88,26.0]
[1748884159075,11.12,152.93,152.9,49.3134507]
[1748884159276,11.12,152.93,152.9,26.0]
[1748884159483,11.12,152.93,152.9,49.3134507]
[1748884160069,23.3134507,152.95,152.9,49.3134507]
[1748884160377,23.3134507,152.94,152.9,49.3134507]
[1748884160570,23.3134507,152.95,152.9,49.3134507]
[1748884160893,23.3134507,152.94,152.91,22.88928127]
[1748884161091,23.3134507,152.92,152.91,6.53979465]
[1748884161457,23.3134507,152.93,152.91,22.88928127]
[1748884164081,0.28432314,152.96,152.91,22.88928127]
[1748884164082,23.3134507,152.92,152.91,6.53979465]
[1748884166968,23.3134507,152.93,152.91,22.88928127]
[1748884168789,0.14216157,152.96,152.91,22.88928127]
[1748884168979,84.5568,153.02,152.93,26.0]
[1748884169183,23.3134507,152.99,152.95,23.3134507]
[1748884169502,23.3134507,152.98,152.94,23.3134507]
[1748884170166,23.3134507,152.98,152.95,22.88329519]
[1748884170566,11.06,153.0,152.96,23.3134507]
[1748884171291,34.3734507,153.0,152.96,23.3134507]
[1748884171872,11.06,153.0,152.96,49.3134507]
[1748884172287,34.3734507,153.0,152.97,22.88030332]
[1748884174866,11.06,153.0,152.97,22.88030332]
[1748884175084,34.3734507,153.0,152.97,22.88030332]
[1748884175803,23.3134507,152.99,152.97,22.88030332]
[1748884176299,23.3134507,152.98,152.94,6.53851183]
[1748884176613,23.3134507,152.97,152.94,6.53851183]
[1748884176798,23.3134507,152.98,152.94,22.88479141]
[1748884176979,23.3134507,152.98,152.94,46.19824211]
[1748884177175,23.3134507,152.99,152.94,46.19824211]
[1748884177496,34.3734507,153.0,152.97,26.0]
[1748884177679,11.06,153.0,152.98,6.53680219]
[1748884178283,23.3134507,152.99,152.98,6.53680219]
[1748884178594,11.06,153.0,152.98,6.53680219]
[1748884178896,34.3734507,153.0,152.98,6.53680219]
[1748884179791,11.06,153.0,152.98,6.53680219]
[1748884180100,34.3734507,153.0,152.98,6.53680219]
[1748884180304,23.3134507,152.99,152.98,6.53680219]
[1748884180499,34.3734507,153.0,152.98,6.53680219]
[1748884183786,23.3134507,152.99,152.98,6.53680219]
[1748884184305,34.3734507,153.0,152.98,6.53680219]
[1748884186104,11.06,153.0,152.98,29.85025289]
[1748884186304,34.3534507,153.04,152.99,23.3134507]
[1748884186691,23.3134507,153.03,152.99,23.3134507]
[1748884186998,23.3134507,153.02,152.98,24.47180768]
[1748884187201,23.3134507,153.01,152.98,22.87880768]
[1748884187426,23.3134507,152.99,152.98,6.53680219]
[1748884188411,23.3134507,152.99,152.96,22.88173891]
[1748884188605,23.3134507,152.98,152.96,22.88173891]
[1748884190205,23.3134507,152.97,152.96,22.88173891]
[1748884190595,23.3134507,152.97,152.96,6.5376569]
[1748884191893,11.04,152.98,152.96,55.8511076]
[1748884192195,34.3534507,153.02,152.97,23.3134507]
[1748884192386,23.3134507,153.01,152.98,22.87880768]
[1748884194231,11.04,153.02,152.98,22.87880768]
[1748884194414,23.3134507,153.01,152.98,22.87880768]
[1748884194734,34.3534507,153.02,152.98,16.34200549]
[1748884195024,34.3534507,153.02,152.99,23.3134507]
[1748884195025,11.04,153.02,152.99,23.3134507]
[1748884195636,11.04,153.02,152.98,16.34200549]
[1748884195922,11.04,153.02,152.99,23.3134507]
[1748884196813,11.04,153.02,153.0,6.53594771]
[1748884197326,11.04,153.02,153.0,29.84939841]
[1748884198825,23.3134507,153.04,153.0,46.18926769]
[1748884199030,34.2734507,153.06,153.01,23.3134507]
[1748884199330,23.3134507,153.07,153.03,23.3134507]
[1748884199527,23.3134507,153.06,153.02,23.3134507]
[1748884199729,23.3134507,153.06,153.01,23.3134507]
[1748884199916,23.3134507,153.05,153.01,23.3134507]
[1748884200109,10.96,153.08,153.01,23.3134507]
[1748884200316,23.3134507,153.05,153.01,23.3134507]
[1748884200518,23.3134507,153.05,153.0,46.18926769]
[1748884201330,10.96,153.08,153.01,23.3134507]
[1748884201331,23.3134507,153.06,153.01,23.3134507]
[1748884201706,23.3134507,153.05,153.01,23.3134507]
[1748884202805,23.3134507,153.02,153.0,6.53594771]
[1748884203009,23.3134507,153.03,152.99,32.53637492]
[1748884203605,41.28432314,153.07,153.0,23.3134507]
[1748884203606,10.96,153.04,153.0,23.3134507]
[1748884204113,10.96,153.04,153.01,23.3134507]
[1748884204725,10.96,153.04,153.02,49.3134507]
[1748884205028,10.96,153.04,153.03,6.5346664]
[1748884205225,34.2734507,153.04,153.03,6.5346664]
[1748884205611,10.96,153.04,153.03,6.5346664]
[1748884206519,23.3134507,153.06,153.03,6.5346664]
[1748884206852,4.66476068,153.15,153.08,26.0]
[1748884207141,4.66476068,153.16,153.13,23.3134507]
[1748884207345,3.73550189,153.16,153.13,23.3134507]
[1748884207503,8.40026257,153.17,153.13,23.3134507]
[1748884207700,34.2734507,153.18,153.14,49.3134507]
[1748884207906,23.3134507,153.15,153.11,7.722]
[1748884208127,23.3134507,153.13,153.1,26.0]
[1748884208621,15.1219866,153.18,153.1,26.0]
[1748884208622,23.3134507,153.14,153.1,26.0]
[1748884209018,23.3134507,153.14,153.11,22.85938214]
[1748884209209,23.3134507,153.15,153.11,22.85938214]
[1748884211911,23.3134507,153.15,153.11,46.17283284]
[1748884215129,23.3134507,153.16,153.11,46.17283284]
[1748884215524,23.3134507,153.15,153.11,22.85938214]
[1748884216223,23.3134507,153.16,153.11,46.17283284]
[1748884217421,11.24432314,153.18,153.11,46.17283284]
[1748884217422,0.14216157,153.17,153.11,46.17283284]
[1748884217747,23.3134507,153.16,153.11,46.17283284]
[1748884219152,23.3134507,153.14,153.11,22.85938214]
[1748884219334,23.3134507,153.15,153.11,22.85938214]
[1748884220750,23.3134507,153.15,153.11,46.17283284]
[1748884220917,34.2734507,153.18,153.13,49.3134507]
[1748884221125,34.2734507,153.18,153.14,23.3134507]
[1748884222948,34.2734507,153.18,153.15,6.52954619]
[1748884223841,34.2734507,153.18,153.15,22.85341168]
[1748884224348,23.3134507,153.16,153.15,6.52954619]
[1748884224848,34.2734507,153.18,153.15,16.32386549]
[1748884225234,10.96,153.18,153.15,16.32386549]
[1748884225634,34.2734507,153.18,153.15,16.32386549]
[1748884227235,34.2734507,153.18,153.15,22.85341168]
[1748884228852,10.96,153.18,153.17,26.0]
[1748884229056,23.3134507,153.19,153.17,26.0]
[1748884229057,10.86,153.23,153.18,26.0]
[1748884229264,23.3134507,153.19,153.16,26.0]
[1748884229445,23.3134507,153.17,153.15,22.85341168]
[1748884229651,23.3134507,153.16,153.15,22.85341168]
[1748884229955,23.3134507,153.16,153.15,6.52954619]
[1748884230835,23.3134507,153.16,153.13,6.530399]
[1748884231163,23.3134507,153.15,153.13,6.530399]
[1748884232868,23.3134507,153.16,153.13,22.85639651]
[1748884233068,23.3134507,153.17,153.13,22.85639651]
[1748884233273,34.1734507,153.18,153.13,46.16984721]
[1748884234077,34.1734507,153.18,153.16,26.0]
[1748884235039,34.1734507,153.18,153.17,6.5286936]
[1748884238786,10.86,153.18,153.17,6.5286936]
[1748884238961,23.3134507,153.2,153.17,6.5286936]
[1748884239155,23.3134507,153.2,153.17,22.85042762]
[1748884239457,23.3134507,153.19,153.17,22.85042762]
[1748884240837,23.3134507,153.18,153.17,22.85042762]
[1748884241851,0.14216157,153.21,153.17,22.85042762]
[1748884242058,23.3134507,153.19,153.17,22.85042762]
[1748884242744,0.14216157,153.21,153.17,22.85042762]
[1748884242949,23.3134507,153.19,153.17,22.85042762]
[1748884244648,23.3134507,153.18,153.17,22.85042762]
[1748884244848,23.3134507,153.18,153.17,6.5286936]
[1748884246166,0.42648471,153.21,153.17,6.5286936]
[1748884246463,23.3134507,153.18,153.17,6.5286936]
[1748884248950,23.3134507,153.18,153.12,16.32627199]
[1748884249156,23.3134507,153.13,153.12,16.32627199]
[1748884249495,23.3134507,153.13,153.11,6.53125204]
[1748884249688,23.3134507,153.12,153.11,32.53125204]
[1748884252159,11.00216157,153.17,153.11,81.51564234]
[1748884252482,23.3134507,153.16,153.14,26.0]
[1748884253267,23.3134507,153.16,153.15,6.52954619]
[1748884253467,10.86,153.17,153.15,6.52954619]
[1748884253665,23.3134507,153.16,153.15,6.52954619]
[1748884256502,34.1734507,153.17,153.15,6.52954619]
[1748884256685,10.86,153.17,153.16,26.0]
[1748884257487,10.86,153.17,153.16,32.52911987]
[1748884257866,23.3134507,153.18,153.16,32.52911987]
[1748884258667,23.3134507,153.2,153.16,48.85191955]
[1748884259091,23.3134507,153.19,153.16,48.85191955]
[1748884259795,23.3134507,153.2,153.16,48.85191955]
[1748884259992,23.3134507,153.19,153.16,48.85191955]
[1748884260895,23.3134507,153.2,153.16,48.85191955]
[1748884261108,23.45561227,153.17,153.16,6.52911987]
[1748884261404,34.25561227,153.17,153.16,6.52911987]
[1748884261767,34.25561227,153.17,153.14,6.52997257]
[1748884261971,23.3134507,153.15,153.14,6.52997257]
[1748884262474,10.94216157,153.17,153.14,6.52997257]
[1748884262475,23.3134507,153.16,153.14,6.52997257]
[1748884262677,34.1134507,153.17,153.14,6.52997257]
[1748884263188,23.3134507,153.16,153.14,6.52997257]
[1748884263793,23.3134507,153.15,153.14,6.52997257]
[1748884264298,23.3134507,153.15,153.13,32.53028591]
[1748884264478,23.3134507,153.14,153.13,32.53028591]
[1748884265195,23.3134507,153.15,153.13,32.53028591]
[1748884265402,34.1134507,153.17,153.13,6.53028591]
[1748884265691,34.1134507,153.17,153.14,26.0]
[1748884265892,23.3134507,153.15,153.14,6.52982318]
[1748884266300,23.3134507,153.15,153.13,32.53028587]
[1748884266492,23.3134507,153.14,153.13,32.53028587]
[1748884269505,23.3134507,153.14,153.13,32.530399]
[1748884272283,23.3134507,153.14,153.13,26.0]
[1748884272688,23.3134507,153.14,153.13,32.530399]
[1748884273214,23.3134507,153.14,153.1,16.32829585]
[1748884273215,0.14216157,153.13,153.11,6.53095372]
[1748884273379,23.3134507,153.12,153.11,6.53095372]
[1748884274683,23.3134507,153.14,153.11,6.53095372]
[1748884274908,23.3134507,153.13,153.11,22.85908382]
[1748884276110,0.28432314,153.16,153.11,22.85908382]
[1748884276111,0.42648471,153.16,153.11,22.85908382]
[1748884276284,23.3134507,153.13,153.11,22.85908382]
[1748884279785,23.3134507,153.12,153.11,22.85908382]
[1748884281012,23.45561227,153.12,153.08,16.330659]
[1748884281311,0.14216157,153.11,153.09,6.53210529]
[1748884281514,23.3134507,153.1,153.09,6.53210529]
[1748884284915,34.1134507,153.12,153.09,22.86236853]
[1748884285414,23.3134507,153.1,153.09,6.53210529]
[1748884287210,23.3134507,153.1,153.08,26.0]
[1748884287211,23.3134507,153.1,153.08,32.53233579]
[1748884287414,0.28432314,153.08,153.02,16.33686051]
[1748884287591,23.3134507,153.03,153.02,22.87195396]
[1748884287989,23.3134507,153.03,153.02,32.53509345]
[1748884288413,23.3134507,153.03,153.02,6.53509345]
[1748884288624,23.3134507,153.03,153.02,32.53509345]
[1748884289192,23.3134507,153.04,153.02,32.53509345]
[1748884289625,23.3134507,153.03,153.02,32.53509345]
[1748884291592,23.3134507,153.04,153.02,48.87282707]
[1748884291993,23.3134507,153.03,153.02,48.87282707]
[1748884293731,10.8,153.07,153.02,48.87282707]
[1748884293732,23.3134507,153.04,153.02,48.87282707]
[1748884295409,23.3134507,153.11,153.06,26.0]
[1748884295616,23.3134507,153.1,153.06,26.0]
[1748884295804,23.3134507,153.09,153.06,26.0]
[1748884297561,23.3134507,153.12,153.07,6.53295877]
[1748884298307,33.57963931,153.12,153.07,6.53295877]
[1748884298538,29.84439786,153.12,153.07,6.53295877]
[1748884298720,23.3134507,153.08,153.07,6.53295877]
[1748884300856,34.25561227,153.08,153.0,17.96332087]
[1748884301025,23.3134507,153.02,153.0,16.33882087]
[1748884301227,23.3134507,153.03,153.02,26.0]
[1748884301857,23.3134507,153.03,153.0,16.33882087]
[1748884302235,23.3134507,153.03,153.02,26.0]
[1748884302923,23.45561227,153.03,152.99,6.53637492]
[1748884303148,23.3134507,153.02,153.01,26.0]
[1748884303665,23.3134507,153.02,152.99,6.53637492]
[1748884303832,0.14216157,153.03,152.99,6.53637492]
[1748884303833,23.3134507,153.0,152.99,6.53637492]
[1748884304361,23.3134507,153.0,152.95,6.53808434]
[1748884304558,23.3134507,152.98,152.97,26.0]
[1748884305451,23.3134507,153.0,152.98,26.0]
[1748884306049,23.3134507,152.99,152.98,26.0]
[1748884306567,23.3134507,152.99,152.98,32.53680219]
[1748884307849,23.3134507,153.0,152.98,32.53680219]
[1748884311159,23.3134507,153.01,152.98,48.87880768]
[1748884311462,34.1134507,153.03,152.98,72.19225838]
[1748884311858,23.3134507,153.01,152.98,48.87880768]
[1748884312264,23.3134507,153.0,152.98,48.87880768]
[1748884312937,10.8,153.03,152.99,23.3134507]
[1748884313141,10.8,153.03,153.0,23.3134507]
[1748884313355,10.8,153.07,153.05,26.0]
[1748884313548,10.8,153.11,153.08,26.0]
[1748884314144,34.1134507,153.11,153.06,46.1803003]
[1748884314867,23.3134507,153.09,153.08,26.0]
[1748884315463,23.3134507,153.1,153.08,26.0]
[1748884316052,10.8,153.11,153.08,26.0]
[1748884316246,23.3134507,153.1,153.09,6.53210529]
[1748884316566,34.1134507,153.11,153.09,6.53210529]
[1748884317450,10.8,153.11,153.09,6.53210529]
[1748884319766,23.3134507,153.13,153.09,46.17581923]
[1748884319968,101.6734507,153.14,153.1,23.3134507]
[1748884320378,101.6734507,153.14,153.09,46.17581923]
[1748884320552,23.3134507,153.11,153.09,6.53210529]
[1748884321473,23.3134507,153.12,153.09,6.53210529]
[1748884322061,78.36,153.14,153.09,22.86236853]
[1748884322062,23.3134507,153.13,153.09,22.86236853]
[1748884323381,23.3134507,153.13,153.09,46.17581923]
[1748884324981,101.6734507,153.14,153.09,46.17581923]
[1748884325151,23.3134507,153.13,153.09,46.17581923]
[1748884325548,23.3134507,153.13,153.09,22.86236853]
[1748884326778,23.3134507,153.12,153.11,26.0]
[1748884328073,23.3134507,153.12,153.09,22.86236853]
[1748884328245,23.3134507,153.13,153.11,26.0]
[1748884328578,78.36,153.14,153.11,26.0]
[1748884328579,101.6734507,153.14,153.11,26.0]
[1748884328766,23.3134507,153.14,153.11,26.0]
[1748884329158,10.8,153.15,153.14,26.0]
[1748884329363,34.1134507,153.15,153.09,22.86236853]
[1748884329579,23.3134507,153.12,153.11,26.0]
[1748884329951,23.3134507,153.12,153.09,6.53210529]
[1748884330152,10.8,153.15,153.1,26.0]
[1748884330153,23.3134507,153.11,153.1,26.0]
[1748884330995,23.3134507,153.11,153.08,32.532532]
[1748884331286,23.3134507,153.09,153.08,32.532532]
[1748884331663,0.28432314,153.14,153.08,32.532532]
[1748884331664,23.3134507,153.1,153.08,32.532532]
[1748884331857,23.3134507,153.11,153.08,32.532532]
[1748884332066,23.3134507,153.11,153.08,48.86386202]
[1748884332360,23.3134507,153.1,153.08,48.86386202]
[1748884333282,23.3134507,153.1,153.08,32.532532]
[1748884334878,23.3134507,153.09,153.08,32.532532]
[1748884336283,23.3134507,153.09,153.08,26.0]
[1748884336665,23.3134507,153.09,153.07,6.53277218]
[1748884336666,23.3134507,153.09,153.03,22.38570178]
[1748884336875,23.3134507,153.07,153.06,26.0]
[1748884338765,23.3134507,153.07,153.06,32.5333856]
[1748884339461,10.94216157,153.1,153.06,48.8668496]
[1748884339462,23.3134507,153.08,153.06,48.8668496]
[1748884339984,23.3134507,153.09,153.06,48.8668496]
[1748884340296,10.8,153.1,153.06,48.8668496]
[1748884340479,23.3134507,153.09,153.06,48.8668496]
[1748884341571,23.3134507,153.08,153.06,48.8668496]
[1748884342687,23.3134507,153.07,153.06,32.5333856]
[1748884343796,23.3134507,153.07,153.06,6.5333856]
[1748884343972,23.3134507,153.07,153.05,6.53373055]
[1748884344183,23.3134507,153.06,153.05,6.53373055]
[1748884344597,23.3134507,153.06,153.03,32.5346664]
[1748884344794,23.3134507,153.04,153.03,32.5346664]
[1748884345607,23.3134507,153.04,152.98,16.34192819]
[1748884345771,23.3134507,153.0,152.98,22.87873038]
[1748884345973,23.3134507,153.0,152.99,26.0]
[1748884346777,23.3134507,153.01,153.0,26.0]
[1748884347802,23.3134507,153.01,153.0,32.53594771]
[1748884349285,23.3134507,153.01,153.0,6.53594771]
[1748884349698,23.3134507,153.01,152.99,6.53637492]
[1748884352110,23.3134507,153.03,153.01,26.0]
[1748884352508,23.3134507,153.02,153.01,26.0]
[1748884352702,23.3134507,153.03,153.01,26.0]
[1748884353190,23.3134507,153.02,153.01,26.0]
[1748884353606,23.3134507,153.02,152.99,48.87731223]
[1748884353818,23.3134507,153.0,152.99,32.53637492]
[1748884355390,23.3134507,153.01,152.99,32.53637492]
[1748884355592,23.3134507,153.03,152.99,32.53637492]
[1748884356308,23.3134507,153.03,152.99,72.19076293]
[1748884358886,0.14216157,153.04,153.01,26.0]
[1748884358887,23.3134507,153.02,153.01,26.0]
[1748884359519,23.3134507,153.02,153.01,32.53552055]
[1748884360332,0.42648471,153.01,152.97,6.53722952]
[1748884360619,23.3134507,152.98,152.97,6.53722952]
[1748884365611,23.3134507,152.98,152.96,32.53747802]
[1748884365818,23.3134507,152.97,152.96,32.53747802]
[1748884366398,23.45561227,152.97,152.96,6.53747802]
[1748884366718,23.45561227,152.97,152.89,53.0346]
[1748884366719,0.42648471,152.96,152.92,6.53936698]
[1748884367019,23.3134507,152.93,152.92,32.53936698]
[1748884367225,23.3134507,152.94,152.92,32.53936698]
[1748884367726,34.1134507,152.95,152.92,32.53936698]
[1748884368212,34.1134507,152.95,152.92,48.88778445]
[1748884368620,23.3134507,152.94,152.92,48.88778445]
[1748884370600,10.8,152.95,152.92,48.88778445]
[1748884370801,23.3134507,152.94,152.92,48.88778445]
[1748884371115,10.8,152.95,152.94,26.0]
[1748884371315,23.3134507,152.98,152.94,49.3134507]
[1748884371708,23.3134507,152.98,152.94,26.0]
[1748884372021,23.3134507,152.96,152.94,26.0]
[1748884372600,23.3134507,152.96,152.95,6.53808434]
[1748884372823,0.14216157,152.95,152.9,16.35055591]
[1748884372995,23.3134507,152.93,152.9,42.35055591]
[1748884373613,23.3134507,152.94,152.92,26.0]
[1748884373822,23.3134507,152.96,152.93,26.0]
[1748884374047,23.3134507,152.95,152.93,26.0]
[1748884374328,23.3134507,152.95,152.9,46.20422897]
[1748884374630,23.3134507,152.94,152.93,32.53893938]
[1748884376924,23.45561227,152.94,152.91,6.53979465]
[1748884377103,23.3134507,152.92,152.91,6.53979465]
[1748884377298,23.3134507,152.92,152.9,26.0]
[1748884377299,23.3134507,152.92,152.9,6.54008685]
[1748884377506,23.3134507,152.91,152.9,6.54008685]
[1748884378324,10.94216157,152.94,152.9,6.54008685]
[1748884378325,0.42648471,152.93,152.9,6.54008685]
[1748884378535,23.3134507,152.91,152.89,6.54065014]
[1748884378830,23.3134507,152.9,152.89,6.54065014]
[1748884380639,23.3134507,152.9,152.85,23.3134507]
[1748884380640,23.45561227,152.9,152.85,22.89737768]
[1748884380929,34.0934507,152.89,152.87,26.0]
[1748884381332,23.3134507,152.88,152.87,26.0]
[1748884381735,32.91947552,152.95,152.89,26.0]
[1748884381944,23.3134507,152.94,152.9,23.3134507]
[1748884382152,23.3134507,152.94,152.9,6.54022236]
[1748884382325,23.3134507,152.91,152.9,6.54022236]
[1748884383944,23.3134507,152.91,152.88,6.54089227]
[1748884383945,0.14216157,152.9,152.88,6.54089227]
[1748884384130,23.3134507,152.89,152.88,6.54089227]
[1748884384325,23.3134507,152.89,152.86,26.0]
[1748884384947,23.3134507,152.88,152.87,26.0]
[1748884385619,23.3134507,152.89,152.87,26.0]
[1748884386222,23.3134507,152.9,152.88,6.54107796]
[1748884386631,23.3134507,152.89,152.88,6.54107796]
[1748884387659,23.3134507,152.89,152.87,32.5413536]
[1748884387851,23.3134507,152.88,152.87,32.5413536]
[1748884389538,23.45561227,152.88,152.84,6.54278984]
[1748884389751,23.3134507,152.86,152.85,26.0]
[1748884390425,23.3134507,152.86,152.85,32.54236179]
[1748884391325,10.92216157,152.88,152.85,32.54236179]
[1748884391532,10.78,152.88,152.85,55.85581249]
[1748884391738,10.78,152.88,152.85,72.21171697]
[1748884391944,34.0934507,152.88,152.85,48.89826627]
[1748884393246,10.78,152.88,152.86,23.3134507]
[1748884393558,10.78,152.88,152.85,73.76481697]
[1748884394845,34.0934507,152.88,152.85,48.89826627]
[1748884395739,23.3134507,152.86,152.85,32.54236179]
[1748884396842,23.3134507,152.87,152.85,32.54236179]
[1748884397744,23.3134507,152.86,152.85,32.54236179]
[1748884399057,23.3134507,152.86,152.82,2.57032119]
[1748884399242,23.3134507,152.84,152.83,26.0]
[1748884399863,23.3134507,152.84,152.82,2.57032119]
[1748884400072,23.3134507,152.84,152.83,32.54321795]
[1748884400236,23.3134507,152.84,152.82,35.11380072]
[1748884400565,23.3134507,152.83,152.82,9.11380072]
[1748884400755,23.45561227,152.83,152.82,2.57032119]